[Event "Turkey IS Bank Super League 2017"]
[Site "Darica-Kocaeli"]
[Date "2017.07.26"]
[Round "1.32"]
[White "Yassibag, Ipek Asli"]
[Black "Avramidou, Anastasia"]
[Result "0-1"]
[ECO "A16"]
[WhiteElo "1880"]
[BlackElo "2247"]
[Annotator "NA"]
[PlyCount "56"]
[EventType "team-tourn"]
[EventCountry "TUR"]
[SourceTitle "playchess.com"]
[Source "ChessBase"]
[SourceQuality "1"]
[TimeControl "40/5400+30:1800+30"]

1. c4 {[%emt 0:00:30] 5} Nf6 {[%emt 0:01:00] 5} 2. Nc3 {[%emt 0:00:30] 5} d5 {[%emt 0:00:30]} 3. cxd5 {[%emt 0:00:30]} Nxd5 {[%emt 0:00:00]} 4. Nxd5 {[%emt 0:01:30]} Qxd5 {[%emt 0:00:00]} 5. d4 {[%emt 0:01:30]} Nc6 {[%emt 0:07:30]} 6. e3 {[%emt 0:04:30]} e5 {[%emt 0:00:30]} 7. dxe5 {[%emt 0:12:30]} Qxd1+ {[%emt 0:00:30]} 8. Kxd1 {[%emt 0:00:30]} Nxe5 {[%emt 0:00:30]} 9. Bd2 {[%emt 0:00:30]} Bg4+ {[%emt 0:09:30]} 10. f3 {[%emt 0:05:30]} O-O-O {[%emt 0:02:30]} 11. Ke1 {[%emt 0:05:30]} Be6 {[%emt 0:03:30]} 12. Bc3 {[%emt 0:08:30]} f6 {[%emt 0:04:30]} 13. Kf2 {[%emt 0:28:30]} Bc5 {[%emt 0:06:30]} 14. a4 {[%emt 0:18:12]} Nd3+ {[%emt 0:06:30] 8} 15. Bxd3 {[%emt 0:01:45]} Rxd3 {[%emt 0:00:30] 3} 16. Re1 {[%emt 0:00:24]} Re8 {[%emt 0:06:30] ]} 17. Bd4 {[%emt 0:05:15]} Bxd4 {[%emt 0:03:30] 4} 18. exd4 {[%emt 0:00:30]} Rxd4 {[%emt 0:00:00] 2} 19. a5 {[%emt 0:01:15]} Rd2+ {[%emt 0:04:00] 9} 20. Re2 {[%emt 0:01:22]} Red8 {[%emt 0:00:30] 7 [%clk 0:40:0]} 21. b4 {[%emt 0:00:49]} Bc4 {[%emt 0:02:30]} 22. Rxd2 {[%emt 0:00:30]} Rxd2+ {[%emt 0:00:30]} 23. Ke3 {[%emt 0:00:30]} Rd1 {[%emt 0:00:30]} 24. Kf2 {[%emt 0:00:30]} b6 {[%emt 0:00:30]} 25. g4 {[%emt 0:00:30]} c5 {[%emt 0:00:30]} 26. axb6 {[%emt 0:00:30]} cxb4 {[%emt 0:00:30]} 27. bxa7 {[%emt 0:00:30]} Kb7 {[%emt 0:00:30]} 28. Kg2 {[%emt 0:00:30]} b3 {[%emt 0:00:30]} 0-1

[Event "Turkey IS Bank Super League 2017"]
[Site "Darica-Kocaeli"]
[Date "2017.07.26"]
[Round "1.36"]
[White "Citak, Selim"]
[Black "Soylu, Suat"]
[Result "1-0"]
[ECO "A39"]
[WhiteElo "2306"]
[BlackElo "2348"]
[Annotator "NA"]
[PlyCount "103"]
[EventType "team-tourn"]
[EventCountry "TUR"]
[SourceTitle "playchess.com"]
[Source "ChessBase"]
[SourceQuality "1"]
[TimeControl "40/5400+30:1800+30"]

1. d4 {[%emt 0:00:30] 34]%[} Nf6 {[%emt 0:01:00] 34]%[} 2. c4 {[%emt 0:00:30] 34]%[} g6 {[%emt 0:00:30] 344]} 3. Nc3 {[%emt 0:00:30] ]34]} Bg7 {[%emt 0:00:00] ]34]} 4. Nf3 {[%emt 0:01:30] ]3]} O-O {[%emt 0:00:00] ]]3} 5. g3 {[%emt 0:00:30] ]]3} c5 {[%emt 0:03:30] ]]3} 6. Bg2 {[%emt 0:00:30] ]]3} cxd4 {[%emt 0:02:30] ]]3} 7. Nxd4 {[%emt 0:00:30] ]]3} Nc6 {[%emt 0:00:30] ]]} 8. O-O {[%emt 0:00:30] ]]]} Qa5 {[%emt 0:00:00] ]]]} 9. e3 {[%emt 0:05:30] ]]]} Ne5 {[%emt 0:21:00] ]]]} 10. Nb3 {[%emt 0:08:30] ]]]} Qb4 {[%emt 0:09:30] ]]]} 11. c5 {[%emt 0:02:30] ]]} d6 {[%emt 0:07:30] ]]} 12. Qd4 {[%emt 0:12:30] ]]} a5 {[%emt 0:08:30] ]]} 13. cxd6 {[%emt 0:02:30] ]]} exd6 {[%emt 0:00:30] ]]} 14. Qxb4 {[%emt 0:07:30] ]]} axb4 {[%emt 0:00:30] ]]} 15. Nb5 {[%emt 0:00:30] ]]} Ra6 {[%emt 0:13:30] ]]} 16. Bd2 {[%emt 0:09:30] ]]} Nd3 {[%emt 0:04:30] ]]} 17. N5d4 {[%emt 0:02:30] ]]} d5 {[%emt 0:01:30] ]]} 18. Nc1 {[%emt 0:05:30] ]]} Nxb2 {[%emt 0:02:30] ]]]} 19. Bxb4 {[%emt 0:02:30] ]]]} Re8 {[%emt 0:01:30] ]]]} 20. Ncb3 {[%emt 0:08:30] ]]]} Nd3 {[%emt 0:02:13]} 21. a3 {[%emt 0:00:30] 7]} Ne4 {[%emt 0:04:40] [%clk 0:12.44]]]} 22. Rad1 {[%emt 0:05:30] ]]]} Nxb4 {[%emt 0:02:53] %%cc} 23. axb4 {[%emt 0:00:30] ]]%%} Rb6 {[%emt 0:01:30] %%cc} 24. Nc2 {[%emt 0:05:59] %%c} Nc3 {[%emt 0:01:17] %} 25. Rd2 {[%emt 0:00:59] ]} Be6 {[%emt 0:01:35] ]} 26. Nbd4 {[%emt 0:03:55] ]} Bxd4 {[%emt 0:00:47] ]]} 27. Nxd4 {[%emt 0:01:31] ]]} Rxb4 {[%emt 0:00:13] ]]} 28. Rc1 {[%emt 0:00:49] ]]} Rc8 {[%emt 0:00:59] ]]} 29. Kf1 {[%emt 0:02:16] ]]} b5 {[%emt 0:01:32] [%clk 0:06.22]]]} 30. Nxe6 {[%emt 0:02:57] c%l} fxe6 {[%emt 0:02:29]} 31. Bh3 {[%emt 0:00:30]} Rc6 {[%emt 0:00:30] [%clk 0:02.18]} 32. Bxe6+ {[%emt 0:04:04] %} Rxe6 {[%emt 0:04:34] %} 33. Rxc3 {[%emt 0:00:30]} Rb1+ {[%emt 0:00:30]} 34. Ke2 {[%emt 0:00:30]} b4 {[%emt 0:00:30]} 35. Rcd3 {[%emt 0:00:30] [%clk 0:30]} Re5 {[%emt 0:00:00]} 36. Rxd5 {[%emt 0:00:00]} Rxd5 {[%emt 0:00:00]} 37. Rxd5 {[%emt 0:00:00]} b3 {[%emt 0:00:00]} 38. Rb5 {[%emt 0:00:00]} h5 {[%emt 0:00:00]} 39. Rb7 {[%emt 0:00:00]} Kf8 {[%emt 0:00:00]} 40. h4 {[%emt 0:00:00]} Ke8 {[%emt 0:03:18]} 41. Kf3 {[%emt 0:06:30]} Kd8 {[%emt 0:00:00]} 42. Kf4 {[%emt 0:03:30]} Kc8 {[%emt 0:00:00]} 43. Rb4 {[%emt 0:00:30]} Kc7 {[%emt 0:00:30]} 44. Kg5 {[%emt 0:00:30]} Kc6 {[%emt 0:00:30]} 45. Kxg6 {[%emt 0:00:30]} Kc5 {[%emt 0:00:30]} 46. Rb8 {[%emt 0:00:30]} Kc4 {[%emt 0:00:00]} 47. e4 {[%emt 0:04:30]} Rf1 {[%emt 0:02:00]} 48. f4 {[%emt 0:03:30]} Rf3 {[%emt 0:00:00]} 49. f5 {[%emt 0:00:39]} Kd4 {[%emt 0:02:00]} 50. f6 {[%emt 0:01:17]} Rxg3+ {[%emt 0:00:30]} 51. Kf5 {[%emt 0:01:08]} Rf3+ {[%emt 0:01:30]} 52. Ke6 {[%emt 0:00:36]} 1-0

[Event "Turkey IS Bank Super League 2017"]
[Site "Darica-Kocaeli"]
[Date "2017.07.26"]
[Round "1.38"]
[White "Yurtseven, Melih"]
[Black "Agdelen, Huseyin Can"]
[Result "0-1"]
[ECO "A38"]
[WhiteElo "2353"]
[BlackElo "2309"]
[Annotator "NA"]
[PlyCount "122"]
[EventType "team-tourn"]
[EventCountry "TUR"]
[SourceTitle "playchess.com"]
[Source "ChessBase"]
[SourceQuality "1"]
[TimeControl "40/5400+30:1800+30"]

1. Nf3 {[%emt 0:00:30] ]2} Nf6 {[%emt 0:01:00] ]2} 2. g3 {[%emt 0:00:30] ]2} g6 {[%emt 0:00:30] ]} 3. b3 {[%emt 0:00:30] ]]} Bg7 {[%emt 0:00:30] ]]} 4. Bb2 {[%emt 0:00:30] ]]} c5 {[%emt 0:00:30] ]]} 5. c4 {[%emt 0:00:30] ]]} d6 {[%emt 0:00:30] ]]} 6. Bg2 {[%emt 0:00:00] ]]} e5 {[%emt 0:00:00] ]]]} 7. O-O {[%emt 0:00:00] ]]]} O-O {[%emt 0:00:00] ]]]} 8. Nc3 {[%emt 0:00:00] ]]]} Nc6 {[%emt 0:02:30] ]]]} 9. Ne1 {[%emt 0:06:00] ]]]} Ng4 {[%emt 0:11:30] ]]]} 10. Nd5 {[%emt 0:02:30] ]]]} Rb8 {[%emt 0:02:30] ]]]} 11. Nc2 {[%emt 0:01:30] ]]]} Bd7 {[%emt 0:13:30] ]]]} 12. e3 {[%emt 0:03:30] ]]]} Nh6 {[%emt 0:02:30] ]]]} 13. Bc3 {[%emt 0:03:30] ]]]} b5 {[%emt 0:14:30] ]]]} 14. cxb5 {[%emt 0:05:30] ]]]} Rxb5 {[%emt 0:00:30] ]]]} 15. b4 {[%emt 0:01:30] ]]]} Kh8 {[%emt 0:37:01] %} 16. Qe2 {[%emt 0:05:30] 9]]} Rb8 {[%emt 0:01:39] ]]} 17. Rfc1 {[%emt 0:03:30] 00]]} Be6 {[%emt 0:05:48] 0]} 18. Qa6 {[%emt 0:05:30] 2]0]} Bxd5 {[%emt 0:01:50] 0]} 19. Bxd5 {[%emt 0:00:30] 4]0]} Nxb4 {[%emt 0:00:34] 0]} 20. Bxb4 {[%emt 0:02:30] ]]0]} cxb4 {[%emt 0:00:02] 0]} 21. Rab1 {[%emt 0:00:30] 6]]]} Qd7 {[%emt 0:01:59] ]]} 22. Rxb4 {[%emt 0:02:30] 37]]} Rbc8 {[%emt 0:00:07] 7} 23. Rbb1 {[%emt 0:11:30] ] [%clk 0:35:0] 4][} Rc5 {[%emt 0:00:45] %lck} 24. Nb4 {[%emt 0:08:30] 55} Rb8 {[%emt 0:00:30]} 25. a3 {[%emt 0:12:30] 4]} Rxb4 {[%emt 0:02:01]} 26. axb4 {[%emt 0:00:30] ]]]} Rxd5 {[%emt 0:00:00] ]} 27. Qc8+ {[%emt 0:00:30] 8]]} Qxc8 {[%emt 0:00:06] ]} 28. Rxc8+ {[%emt 0:00:30] 8]]} Ng8 {[%emt 0:00:30] ]} 29. Ra1 {[%emt 0:00:00] 8]]} Bf6 {[%emt 0:00:54] [%clk 0:00.46]} 30. Rxa7 {[%emt 0:09:15] %%c} Kg7 {[%emt 0:00:28] %%} 31. Rc2 {[%emt 0:00:30] %%} Rb5 {[%emt 0:00:30] %%} 32. Rb2 {[%emt 0:00:30] %%} e4 {[%emt 0:00:30] %%} 33. Rb3 {[%emt 0:00:30] %%} Ne7 {[%emt 0:00:30] % [%clk 0:00:34] k} 34. Ra5 {[%emt 0:09:27] [} Rb8 {[%emt 0:00:42]} 35. Ra6 {[%emt 0:00:30]} Nd5 {[%emt 0:00:30] [%clk 0:00.43]} 36. Rxd6 {[%emt 0:04:57]} Rxb4 {[%emt 0:00:21]} 37. Rxb4 {[%emt 0:00:30]} Nxb4 {[%emt 0:00:30]} 38. g4 {[%emt 0:00:30]} Be7 {[%emt 0:00:30]} 39. Rd7 {[%emt 0:00:30]} Kf6 {[%emt 0:00:30]} 40. f3 {[%emt 0:00:30]} exf3 {[%emt 0:00:13]} 41. Kf2 {[%emt 0:03:51]} Ke6 {[%emt 0:06:30]} 42. Rd4 {[%emt 0:08:30]} Nc6 {[%emt 0:01:30]} 43. Ra4 {[%emt 0:05:06]} Ne5 {[%emt 0:01:30]} 44. Kg3 {[%emt 0:02:03]} Bd6 {[%emt 0:08:59]} 45. d4 {[%emt 0:00:52]} f2 {[%emt 0:00:27]} 46. d5+ {[%emt 0:07:35]} Kxd5 {[%emt 0:00:30]} 47. Kxf2 {[%emt 0:02:30]} Nc4 {[%emt 0:02:57]} 48. e4+ {[%emt 0:00:59]} Kd4 {[%emt 0:00:04]} 49. h3 {[%emt 0:01:44]} Kd3 {[%emt 0:00:10]} 50. Kg2 {[%emt 0:01:34]} h6 {[%emt 0:05:54]} 51. Kf2 {[%emt 0:01:18]} Nd2 {[%emt 0:00:56]} 52. Ra6 {[%emt 0:00:40]} Nxe4+ {[%emt 0:00:13]} 53. Kf3 {[%emt 0:00:13]} Nd2+ {[%emt 0:00:41]} 54. Kg2 {[%emt 0:00:05]} Be5 {[%emt 0:00:48]} 55. Ra7 {[%emt 0:00:30]} f5 {[%emt 0:00:00]} 56. Ra6 {[%emt 0:00:27]} f4 {[%emt 0:00:14]} 57. Ra3+ {[%emt 0:00:38]} Ke4 {[%emt 0:00:07]} 58. Ra4+ {[%emt 0:01:39]} Bd4 {[%emt 0:00:30]} 59. Ra8 {[%emt 0:00:30]} f3+ {[%emt 0:00:30]} 60. Kg3 {[%emt 0:00:30]} f2 {[%emt 0:00:30]} 61. Re8+ {[%emt 0:00:30]} Kd5 {[%emt 0:00:30]} 0-1

[Event "Turkey IS Bank Super League 2017"]
[Site "Darica-Kocaeli"]
[Date "2017.07.26"]
[Round "1.39"]
[White "Tasdogen, Dincer"]
[Black "Unat, Can Haktan"]
[Result "1/2-1/2"]
[ECO "B48"]
[WhiteElo "2215"]
[BlackElo "2006"]
[Annotator "NA"]
[PlyCount "119"]
[EventType "team-tourn"]
[EventCountry "TUR"]
[SourceTitle "playchess.com"]
[Source "ChessBase"]
[SourceQuality "1"]
[TimeControl "40/5400+30:1800+30"]

1. e4 {[%emt 0:00:30] .464} c5 {[%emt 0:01:00] .464} 2. Nf3 {[%emt 0:00:30] .464} e6 {[%emt 0:00:30] .44} 3. d4 {[%emt 0:00:30] .444} cxd4 {[%emt 0:00:30] .444} 4. Nxd4 {[%emt 0:00:30] .444} Nc6 {[%emt 0:00:30] .44} 5. Nc3 {[%emt 0:00:30] ..4} Qc7 {[%emt 0:00:30] ..4} 6. Be3 {[%emt 0:00:30] ..} a6 {[%emt 0:00:30] ...} 7. a3 {[%emt 0:00:00] ...} Nf6 {[%emt 0:02:30] ...} 8. f4 {[%emt 0:00:00] ...} d5 {[%emt 0:09:30] ...} 9. exd5 {[%emt 0:15:30] ...} exd5 {[%emt 0:02:30] ..} 10. Qd2 {[%emt 0:01:30] ...} Bd6 {[%emt 0:04:30] ...} 11. Be2 {[%emt 0:47:30] ...} O-O {[%emt 0:01:30] ...} 12. O-O {[%emt 0:04:30] ...} Re8 {[%emt 0:00:30] ...} 13. Rad1 {[%emt 0:08:26] ]%} Nxd4 {[%emt 0:07:30] 0]]%} 14. Bxd4 {[%emt 0:03:51] ]%} Ne4 {[%emt 0:32:30] ] [%clk 0:24:0].6.} 15. Nxd5 {[%emt 0:10:31] clck} Qc6 {[%emt 0:09:30] 22c} 16. Qa5 {[%emt 0:00:19] ccc} b5 {[%emt 0:04:30] 3]]c} 17. Ne3 {[%emt 0:02:17] ccc} Bb7 {[%emt 0:04:40] c} 18. Bf3 {[%emt 0:00:57] ]} Qc8 {[%emt 0:06:24] ]} 19. Qe1 {[%emt 0:00:45] ]} Bxf4 {[%emt 0:00:23] ]} 20. Qh4 {[%emt 0:00:19] ]} Bg5 {[%emt 0:01:19] ]} 21. Qh5 {[%emt 0:00:31] ]} g6 {[%emt 0:00:29] ]} 22. Qg4 {[%emt 0:00:30] ]} Qxg4 {[%emt 0:00:00] [%clk 0:07.32] [%clk 0:02:19] 1} 23. Nxg4 {[%emt 0:00:26] %} f5 {[%emt 0:07:56] %} 24. Nf2 {[%emt 0:00:30] %} Rac8 {[%emt 0:00:30]} 25. c3 {[%emt 0:00:30]} Bd5 {[%emt 0:00:30]} 26. Bxe4 {[%emt 0:00:30]} fxe4 {[%emt 0:00:30]} 27. Ng4 {[%emt 0:00:30]} Be6 {[%emt 0:00:30]} 28. Nf6+ {[%emt 0:00:30]} Bxf6 {[%emt 0:00:30]} 29. Rxf6 {[%emt 0:00:30]} a5 {[%emt 0:00:30]} 30. Re1 {[%emt 0:00:30]} Bd5 {[%emt 0:00:30]} 31. h4 {[%emt 0:00:30]} Rf8 {[%emt 0:00:30]} 32. Rd6 {[%emt 0:00:30] [%clk 0:00.37]} Rcd8 {[%emt 0:01:46]} 33. Rxd8 {[%emt 0:00:31]} Rxd8 {[%emt 0:00:30]} 34. Bb6 {[%emt 0:00:30]} Ra8 {[%emt 0:00:30]} 35. Rd1 {[%emt 0:00:30]} Be6 {[%emt 0:00:30]} 36. Rd4 {[%emt 0:00:30]} Ra6 {[%emt 0:00:30]} 37. Bd8 {[%emt 0:00:30]} Bf5 {[%emt 0:00:30]} 38. Kf2 {[%emt 0:00:30]} Kf7 {[%emt 0:00:30]} 39. Ke3 {[%emt 0:00:30]} h5 {[%emt 0:00:30]} 40. Rd5 {[%emt 0:00:30]} Ra8 {[%emt 0:01:33]} 41. Bb6 {[%emt 0:07:07]} Ra6 {[%emt 0:00:00]} 42. Bd4 {[%emt 0:02:30]} a4 {[%emt 0:11:55]} 43. Rxb5 {[%emt 0:00:30]} Bd7 {[%emt 0:03:39]} 44. Rb7 {[%emt 0:05:23]} Ke6 {[%emt 0:00:04]} 45. Rb8 {[%emt 0:08:11]} Kd5 {[%emt 0:03:03]} 46. Rd8 {[%emt 0:07:29]} Ke6 {[%emt 0:01:09]} 47. Rf8 {[%emt 0:01:38]} Kd5 {[%emt 0:01:03]} 48. Rd8 {[%emt 0:01:01]} Ke6 {[%emt 0:00:02]} 49. g3 {[%emt 0:00:41]} Rd6 {[%emt 0:02:53]} 50. Rf8 {[%emt 0:00:30]} Kd5 {[%emt 0:00:00]} 51. Rd8 {[%emt 0:00:44]} Ke6 {[%emt 0:00:00]} 52. Rb8 {[%emt 0:00:16]} Kd5 {[%emt 0:01:11]} 53. Rb4 {[%emt 0:00:26]} Rc6 {[%emt 0:01:20]} 54. Rb5+ {[%emt 0:00:30]} Kc4 {[%emt 0:00:00]} 55. Rb4+ {[%emt 0:00:36]} Kd5 {[%emt 0:00:00]} 56. Rb7 {[%emt 0:00:31]} Rd6 {[%emt 0:00:34]} 57. Ra7 {[%emt 0:00:27]} Bb5 {[%emt 0:02:57]} 58. Ra5 {[%emt 0:00:42]} Kc4 {[%emt 0:00:07]} 59. b3+ {[%emt 0:00:47]} axb3 {[%emt 0:00:30]} 60. a4 {[%emt 0:00:00]} 1/2-1/2

[Event "Turkey IS Bank Super League 2017"]
[Site "Darica-Kocaeli"]
[Date "2017.07.26"]
[Round "1.40"]
[White "Sade, Defne"]
[Black "Celik, Eda"]
[Result "0-1"]
[ECO "B41"]
[WhiteElo "1654"]
[BlackElo "1939"]
[Annotator "NA"]
[PlyCount "82"]
[EventType "team-tourn"]
[EventCountry "TUR"]
[SourceTitle "playchess.com"]
[Source "ChessBase"]
[SourceQuality "1"]
[TimeControl "40/5400+30:1800+30"]

1. e4 {[%emt 0:00:30] .6]8} c5 {[%emt 0:01:00] .6]8} 2. Nf3 {[%emt 0:00:30] .6]8} e6 {[%emt 0:00:30] .68} 3. d4 {[%emt 0:00:30] .668} cxd4 {[%emt 0:00:30] .668} 4. Nxd4 {[%emt 0:00:30] .668} a6 {[%emt 0:00:30] .66} 5. c4 {[%emt 0:00:30] ..6} Nf6 {[%emt 0:00:30] ..6} 6. Nc3 {[%emt 0:00:30] ..} Qc7 {[%emt 0:00:30] ...} 7. Be2 {[%emt 0:00:00] ...} b6 {[%emt 0:00:30] ...} 8. O-O {[%emt 0:03:00] ...} Bb7 {[%emt 0:02:30] ...} 9. f3 {[%emt 0:02:30] ...} d6 {[%emt 0:00:30] ...} 10. Be3 {[%emt 0:00:30] ...} Nbd7 {[%emt 0:01:30] ...} 11. Rc1 {[%emt 0:03:30] ...} Be7 {[%emt 0:00:30] ...} 12. Nb3 {[%emt 0:05:30] ...} Rc8 {[%emt 0:03:30] ...} 13. Qd2 {[%emt 0:02:30] ...} O-O {[%emt 0:02:30] ...} 14. Rfd1 {[%emt 0:00:30] ...} Qb8 {[%emt 0:16:30] ...} 15. Bf4 {[%emt 0:09:30] ....} Ne5 {[%emt 0:00:30] ...} 16. Qd4 {[%emt 0:05:30] ...} Bd8 {[%emt 0:08:30] ...} 17. Bg3 {[%emt 0:11:30] ...} Bc7 {[%emt 0:01:30] ...} 18. Bh4 {[%emt 0:08:30] ..} Ned7 {[%emt 0:17:30] ...} 19. Kh1 {[%emt 0:08:30] ...} Rfe8 {[%emt 0:02:30] ...} 20. Bg3 {[%emt 0:07:30] ...} Ne5 {[%emt 0:00:30] ...} 21. f4 {[%emt 0:01:30] ]..} Ng6 {[%emt 0:06:30] ].} 22. Qe3 {[%emt 0:02:30] [%clk 0:24]07.} d5 {[%emt 0:21:11] kk} 23. e5 {[%emt 0:01:30] 99} dxc4 {[%emt 0:00:30] kk} 24. Bxc4 {[%emt 0:00:30] 9]} Nh5 {[%emt 0:00:59] kk} 25. Be2 {[%emt 0:04:30] 0]]} Nxg3+ {[%emt 0:00:35] ]} 26. hxg3 {[%emt 0:02:24]} f6 {[%emt 0:05:49] ]} 27. exf6 {[%emt 0:01:38] ]} gxf6 {[%emt 0:00:05] ]} 28. Bc4 {[%emt 0:00:56] ]} Nf8 {[%emt 0:01:00] [%clk 0:05.21] [%clk 0:01:24]} 29. Qe2 {[%emt 0:14:55] %} Re7 {[%emt 0:04:27] %} 30. Bxa6 {[%emt 0:00:30]} Bxa6 {[%emt 0:00:30]} 31. Qxa6 {[%emt 0:00:30]} Rg7 {[%emt 0:00:30]} 32. Ne4 {[%emt 0:00:30]} Rg6 {[%emt 0:00:30] [%clk 0:01.39]} 33. Qc4 {[%emt 0:02:04]} b5 {[%emt 0:00:15]} 34. Qc6 {[%emt 0:00:30]} Rh6+ {[%emt 0:00:30]} 35. Kg1 {[%emt 0:00:30]} Bb6+ {[%emt 0:00:30]} 36. Kf1 {[%emt 0:00:30]} Rxc6 {[%emt 0:00:30]} 37. Rxc6 {[%emt 0:00:30]} Rh1+ {[%emt 0:00:30]} 38. Ke2 {[%emt 0:00:30]} Rxd1 {[%emt 0:00:30]} 39. Kxd1 {[%emt 0:00:30]} Qb7 {[%emt 0:00:30]} 40. Nxf6+ {[%emt 0:00:30]} Kf7 {[%emt 0:30:30]} 41. Rd6 {[%emt 0:30:30]} Kxf6 {[%emt 0:00:00]} 0-1

[Event "Turkey IS Bank Super League 2017"]
[Site "Darica-Kocaeli"]
[Date "2017.07.26"]
[Round "1.45"]
[White "Kaplan, Ebru"]
[Black "Yildiz, Betul Cemre"]
[Result "0-1"]
[ECO "B29"]
[WhiteElo "2022"]
[BlackElo "2326"]
[Annotator "NA"]
[PlyCount "112"]
[EventType "team-tourn"]
[EventCountry "TUR"]
[SourceTitle "playchess.com"]
[Source "ChessBase"]
[SourceQuality "1"]
[TimeControl "40/5400+30:1800+30"]

1. e4 {[%emt 0:00:30] 54} c5 {[%emt 0:01:00] 54} 2. Nf3 {[%emt 0:00:30] 54} Nf6 {[%emt 0:00:30] 54} 3. Nc3 {[%emt 0:00:30] ]54} d5 {[%emt 0:00:30] ]54} 4. exd5 {[%emt 0:01:30] ]54} Nxd5 {[%emt 0:00:00] ]54} 5. Bb5+ {[%emt 0:02:30] ]54} Bd7 {[%emt 0:00:00] ]54} 6. Bxd7+ {[%emt 0:00:30] ]5} Qxd7 {[%emt 0:00:00] ]]} 7. O-O {[%emt 0:01:30] ]]} Nc6 {[%emt 0:04:00] ]]} 8. d4 {[%emt 0:19:30] ]]} cxd4 {[%emt 0:08:30] ]]} 9. Nxd4 {[%emt 0:00:30] ]]} Nxc3 {[%emt 0:01:30] ]]} 10. bxc3 {[%emt 0:00:00] ]]]} e6 {[%emt 0:02:30] ]]]} 11. Be3 {[%emt 0:05:00] ]]]} Be7 {[%emt 0:07:30] ]]]} 12. Rb1 {[%emt 0:12:30] ]]]} O-O {[%emt 0:07:30] ]]]} 13. Qf3 {[%emt 0:06:30] ]]]} Na5 {[%emt 0:06:30] ]]]} 14. Rb5 {[%emt 0:03:30] ]]]} b6 {[%emt 0:01:30] ]]} 15. Rh5 {[%emt 0:01:30] ]]]} g6 {[%emt 0:07:30] ]]]} 16. Bh6 {[%emt 0:07:30] ]]]} Rfd8 {[%emt 0:05:30] ]]]} 17. Re1 {[%emt 0:05:30] ]]]} Rac8 {[%emt 0:01:30] ]]]} 18. Rhe5 {[%emt 0:05:30] ]]]} Nc4 {[%emt 0:04:30] ]]]} 19. R5e2 {[%emt 0:03:30] ]]]} e5 {[%emt 0:08:30] ]]]} 20. h3 {[%emt 0:04:28] [%clk 0:17.02][} Bf8 {[%emt 0:13:33] %%%l} 21. Bxf8 {[%emt 0:00:30]} Rxf8 {[%emt 0:00:30]} 22. Nb3 {[%emt 0:00:30] ]} f5 {[%emt 0:00:39] ]} 23. Qg3 {[%emt 0:04:35] ]} Qd6 {[%emt 0:10:36] [%clk 0:03.19] [%clk 0:01:40] ] [%clk 0:00:34] ] [%clk 0:00:44]} 24. Kh1 {[%emt 0:13:02]} Rfd8 {[%emt 0:07:28]} 25. Qg5 {[%emt 0:00:30]} Kg7 {[%emt 0:00:30]} 26. h4 {[%emt 0:00:30]} Qf6 {[%emt 0:00:30]} 27. Qg3 {[%emt 0:00:30]} e4 {[%emt 0:00:30]} 28. Nd4 {[%emt 0:00:30]} Kh8 {[%emt 0:00:30]} 29. Rb1 {[%emt 0:00:30]} Rd5 {[%emt 0:00:30]} 30. Kg1 {[%emt 0:00:30]} f4 {[%emt 0:00:30]} 31. Qh3 {[%emt 0:00:30]} Re8 {[%emt 0:00:30]} 32. Rb4 {[%emt 0:00:30]} Nd6 {[%emt 0:00:30]} 33. a4 {[%emt 0:00:30]} Rh5 {[%emt 0:00:30]} 34. g3 {[%emt 0:00:30]} Rc5 {[%emt 0:00:30]} 35. Nb5 {[%emt 0:00:30]} Nxb5 {[%emt 0:00:30]} 36. axb5 {[%emt 0:00:30]} Rce5 {[%emt 0:00:30]} 37. Rd4 {[%emt 0:00:30]} f3 {[%emt 0:00:30]} 38. Re3 {[%emt 0:00:30]} Qf7 {[%emt 0:00:30]} 39. Qd7 {[%emt 0:00:30]} R8e7 {[%emt 0:00:30]} 40. Qc8+ {[%emt 0:00:30]} Kg7 {[%emt 0:00:14]} 41. Kh2 {[%emt 0:11:56]} Qf5 {[%emt 0:12:24]} 42. Qa8 {[%emt 0:10:48]} h6 {[%emt 0:08:40]} 43. Rd8 {[%emt 0:01:31]} Qf7 {[%emt 0:00:07]} 44. c4 {[%emt 0:04:22]} g5 {[%emt 0:04:04]} 45. Rh8 {[%emt 0:02:16]} gxh4 {[%emt 0:01:16]} 46. g4 {[%emt 0:00:55]} Rg5 {[%emt 0:02:02]} 47. Kh3 {[%emt 0:01:02]} h5 {[%emt 0:02:23]} 48. Rxh5 {[%emt 0:00:50]} Rxh5 {[%emt 0:01:16]} 49. gxh5 {[%emt 0:00:08]} Qf5+ {[%emt 0:02:33]} 50. Kxh4 {[%emt 0:00:06]} Qf4+ {[%emt 0:00:48]} 51. Kh3 {[%emt 0:00:05]} Qf5+ {[%emt 0:00:50]} 52. Kh4 {[%emt 0:00:30]} Qe5 {[%emt 0:00:00]} 53. h6+ {[%emt 0:01:51]} Kxh6 {[%emt 0:00:33]} 54. Qf8+ {[%emt 0:00:15]} Kh7 {[%emt 0:00:06]} 55. Qc8 {[%emt 0:00:48]} Rg7 {[%emt 0:00:40]} 56. Re1 {[%emt 0:00:15]} Qg5+ {[%emt 0:00:08]} 0-1